[Event "Late-Titled-Tuesday-Blitz-May-07-2024"]
[Site "Chess.com"]
[Date "2024.05.07"]
[Round "10"]
[White "Magicmaster17"]
[Black "manitodeplomo"]
[Result "1-0"]
[WhiteElo "2878"]
[BlackElo "2591"]
[TimeControl "180+1"]
[EndTime "15:56:31 PDT"]
[Termination "Magicmaster17 won by resignation"]

1. d4 {[%clk 0:03:00.9]} 1... c5 {[%clk 0:02:59.4]} 2. d5 {[%clk 0:02:59.7]}
2... g6 {[%clk 0:02:59.9]} 3. e4 {[%clk 0:02:58.8]} 3... Bg7 {[%clk 0:03:00.2]}
4. Nf3 {[%clk 0:02:59.4]} 4... d6 {[%clk 0:03:00.2]} 5. Be2 {[%clk 0:02:57]}
5... Nf6 {[%clk 0:02:59.7]} 6. Nc3 {[%clk 0:02:57.6]} 6... O-O {[%clk
0:02:59.3]} 7. O-O {[%clk 0:02:58.2]} 7... Na6 {[%clk 0:02:55.1]} 8. Re1 {[%clk
0:02:57.8]} 8... Nc7 {[%clk 0:02:55.5]} 9. Bf4 {[%clk 0:02:57.7]} 9... Bg4
{[%clk 0:02:46.2]} 10. a4 {[%clk 0:02:55]} 10... b6 {[%clk 0:02:37]} 11. Nd2
{[%clk 0:02:52.7]} 11... Bxe2 {[%clk 0:02:36.4]} 12. Qxe2 {[%clk 0:02:53.3]}
12... a6 {[%clk 0:02:31.8]} 13. h3 {[%clk 0:02:48.2]} 13... Nd7 {[%clk
0:02:18.8]} 14. Bg5 {[%clk 0:02:45.4]} 14... h6 {[%clk 0:02:18.1]} 15. Bh4
{[%clk 0:02:44.8]} 15... Re8 {[%clk 0:02:13.4]} 16. Nc4 {[%clk 0:02:44.5]} 16...
b5 {[%clk 0:02:01.6]} 17. Nxd6 {[%clk 0:02:44.1]} 17... Rf8 {[%clk 0:01:46.2]}
18. axb5 {[%clk 0:02:42.4]} 18... g5 {[%clk 0:01:43.5]} 19. Nf5 {[%clk
0:02:42.5]} 19... e6 {[%clk 0:01:34.8]} 20. Nxg7 {[%clk 0:02:40.9]} 20... gxh4
{[%clk 0:01:33.4]} 21. Nh5 {[%clk 0:02:31.1]} 21... Qg5 {[%clk 0:01:11.2]} 22.
bxa6 {[%clk 0:02:30.4]} 22... Kh8 {[%clk 0:00:49.6]} 23. Qg4 {[%clk 0:02:09.6]}
23... Nxa6 {[%clk 0:00:21.7]} 24. Nf4 {[%clk 0:01:54]} 24... Ne5 {[%clk
0:00:20.1]} 25. Qxg5 {[%clk 0:01:46.8]} 25... hxg5 {[%clk 0:00:21]} 26. Nd3
{[%clk 0:01:46.8]} 26... Nxd3 {[%clk 0:00:20.8]} 27. cxd3 {[%clk 0:01:47.7]}
27... Nb4 {[%clk 0:00:21.4]} 28. Rxa8 {[%clk 0:01:23.1]} 28... Rxa8 {[%clk
0:00:22.3]} 29. Rd1 {[%clk 0:01:23.3]} 29... exd5 {[%clk 0:00:15.9]} 30. exd5
{[%clk 0:01:23.2]} 30... Rd8 {[%clk 0:00:15.8]} 31. d4 {[%clk 0:01:23.3]} 31...
c4 {[%clk 0:00:15.8]} 32. Ne4 {[%clk 0:01:16.8]} 32... Rxd5 {[%clk 0:00:14.9]}
33. Rc1 {[%clk 0:01:08.9]} 33... Rxd4 {[%clk 0:00:12.9]} 34. Nxg5 {[%clk
0:01:09]} 34... Kg7 {[%clk 0:00:12.9]} 35. Nf3 {[%clk 0:01:01.4]} 35... Re4
{[%clk 0:00:10.8]} 36. Kf1 {[%clk 0:01:01.7]} 36... Nd3 {[%clk 0:00:10.4]} 37.
Rc2 {[%clk 0:01:01.6]} 37... Kf6 {[%clk 0:00:09.3]} 38. Rd2 {[%clk 0:00:50.8]}
38... Ke7 {[%clk 0:00:08.8]} 39. b3 {[%clk 0:00:49.7]} 39... Nc5 {[%clk
0:00:06.7]} 40. bxc4 {[%clk 0:00:48.7]} 40... Rxc4 {[%clk 0:00:07.6]} 41. Rd4
{[%clk 0:00:48.3]} 41... Rxd4 {[%clk 0:00:07]} 42. Nxd4 {[%clk 0:00:49.2]} 42...
Kf6 {[%clk 0:00:07.6]} 43. Nf3 {[%clk 0:00:49.5]} 43... Ne6 {[%clk 0:00:06.4]}
44. Nxh4 {[%clk 0:00:49.8]} 44... Nd4 {[%clk 0:00:06.6]} 45. g3 {[%clk
0:00:46.2]} 45... Kg5 {[%clk 0:00:06.8]} 46. Kg2 {[%clk 0:00:47.1]} 46... f5
{[%clk 0:00:06.5]} 47. Nf3+ {[%clk 0:00:47.7]} 47... Nxf3 {[%clk 0:00:06.1]} 48.
Kxf3 {[%clk 0:00:48.6]} 1-0

[Event "Late-Titled-Tuesday-Blitz-May-07-2024"]
[Site "Chess.com"]
[Date "2024.05.07"]
[Round "10"]
[White "Denisenko_Denis"]
[Black "Romkachess"]
[Result "0-1"]
[WhiteElo "2420"]
[BlackElo "2618"]
[TimeControl "180+1"]
[EndTime "15:56:31 PDT"]
[Termination "Romkachess won by resignation"]

1. e4 {[%clk 0:02:55.9]} 1... c5 {[%clk 0:02:53.7]} 2. Nf3 {[%clk 0:02:52.8]}
2... d6 {[%clk 0:02:51.9]} 3. c3 {[%clk 0:02:52.2]} 3... Nf6 {[%clk 0:02:49.7]}
4. Be2 {[%clk 0:02:49.2]} 4... g6 {[%clk 0:02:30.7]} 5. O-O {[%clk 0:02:42.1]}
5... Bg7 {[%clk 0:02:26.5]} 6. Bb5+ {[%clk 0:02:41.4]} 6... Bd7 {[%clk
0:02:24.1]} 7. Bxd7+ {[%clk 0:02:40.6]} 7... Qxd7 {[%clk 0:02:21.9]} 8. Qe2
{[%clk 0:02:41.5]} 8... O-O {[%clk 0:02:21.8]} 9. d4 {[%clk 0:02:30.4]} 9...
cxd4 {[%clk 0:02:19.8]} 10. cxd4 {[%clk 0:02:30.6]} 10... d5 {[%clk 0:02:20.5]}
11. e5 {[%clk 0:02:27]} 11... Ne4 {[%clk 0:02:19.4]} 12. Nbd2 {[%clk 0:02:21.4]}
12... Nxd2 {[%clk 0:02:16.7]} 13. Bxd2 {[%clk 0:02:22.3]} 13... Nc6 {[%clk
0:02:16.3]} 14. Rac1 {[%clk 0:02:17.5]} 14... Rfc8 {[%clk 0:02:15]} 15. Rfe1
{[%clk 0:02:17.1]} 15... e6 {[%clk 0:02:12.9]} 16. h4 {[%clk 0:02:16.2]} 16...
Bf8 {[%clk 0:01:59.1]} 17. h5 {[%clk 0:02:10.4]} 17... Nb4 {[%clk 0:01:52.3]}
18. hxg6 {[%clk 0:01:51.3]} 18... hxg6 {[%clk 0:01:50.5]} 19. Bxb4 {[%clk
0:01:47]} 19... Bxb4 {[%clk 0:01:47.2]} 20. Red1 {[%clk 0:01:45.4]} 20... Rxc1
{[%clk 0:01:42.1]} 21. Rxc1 {[%clk 0:01:45.4]} 21... Rc8 {[%clk 0:01:42.9]} 22.
Rc2 {[%clk 0:01:43.5]} 22... Be7 {[%clk 0:01:39.8]} 23. Qd2 {[%clk 0:01:35.9]}
23... Rc6 {[%clk 0:01:35.2]} 24. a3 {[%clk 0:01:33]} 24... Qc8 {[%clk
0:01:28.8]} 25. Ne1 {[%clk 0:01:29.4]} 25... Rc4 {[%clk 0:01:19.6]} 26. b3
{[%clk 0:01:25.4]} 26... Rc6 {[%clk 0:01:09.3]} 27. Rxc6 {[%clk 0:01:11.6]}
27... Qxc6 {[%clk 0:01:03.3]} 28. b4 {[%clk 0:01:03]} 28... Qc4 {[%clk 0:00:54]}
29. g3 {[%clk 0:01:02.3]} 29... Bd8 {[%clk 0:00:52.3]} 30. Qd3 {[%clk
0:00:54.8]} 30... Qc1 {[%clk 0:00:48.7]} 31. Kf1 {[%clk 0:00:53.5]} 31... Bb6
{[%clk 0:00:47.8]} 32. Ke2 {[%clk 0:00:51.5]} 32... Qb2+ {[%clk 0:00:46]} 33.
Nc2 {[%clk 0:00:50.3]} 33... Bxd4 {[%clk 0:00:37.2]} 34. Qxd4 {[%clk 0:00:46.5]}
34... Qxc2+ {[%clk 0:00:25]} 35. Kf3 {[%clk 0:00:42]} 35... Qb3+ {[%clk
0:00:18.2]} 36. Kg4 {[%clk 0:00:41.2]} 36... Qxa3 {[%clk 0:00:15.7]} 37. Kg5
{[%clk 0:00:34.6]} 37... Kg7 {[%clk 0:00:15.3]} 38. g4 {[%clk 0:00:32.8]} 38...
Qh3 {[%clk 0:00:13.2]} 39. Kf4 {[%clk 0:00:29.9]} 39... Qh6+ {[%clk 0:00:13.3]}
40. Kf3 {[%clk 0:00:29.3]} 40... b6 {[%clk 0:00:12]} 41. Qc3 {[%clk 0:00:27]}
41... Qh3+ {[%clk 0:00:11.1]} 0-1

[Event "Late-Titled-Tuesday-Blitz-May-07-2024"]
[Site "Chess.com"]
[Date "2024.05.07"]
[Round "10"]
[White "Mariia89"]
[Black "JaackCamel"]
[Result "1-0"]
[WhiteElo "2228"]
[BlackElo "2200"]
[TimeControl "180+1"]
[EndTime "15:56:31 PDT"]
[Termination "Mariia89 won by resignation"]

1. d4 {[%clk 0:02:35.1]} 1... d5 {[%clk 0:02:50.6]} 2. c4 {[%clk 0:02:35]} 2...
e6 {[%clk 0:02:45.4]} 3. Nc3 {[%clk 0:02:35]} 3... c6 {[%clk 0:02:44.3]} 4. e3
{[%clk 0:02:35.1]} 4... Nf6 {[%clk 0:02:41.8]} 5. Bd3 {[%clk 0:02:34.9]} 5...
Nbd7 {[%clk 0:02:39.6]} 6. Nf3 {[%clk 0:02:35.5]} 6... dxc4 {[%clk 0:02:39.6]}
7. Bxc4 {[%clk 0:02:35.6]} 7... b5 {[%clk 0:02:39.4]} 8. Bd3 {[%clk 0:02:36.2]}
8... a6 {[%clk 0:02:39.5]} 9. e4 {[%clk 0:02:36.5]} 9... Bb7 {[%clk 0:02:37.1]}
10. e5 {[%clk 0:02:36.7]} 10... Nd5 {[%clk 0:02:35.3]} 11. Nxd5 {[%clk
0:02:36.9]} 11... cxd5 {[%clk 0:02:25.4]} 12. O-O {[%clk 0:02:37]} 12... Be7
{[%clk 0:02:22.2]} 13. Bf4 {[%clk 0:02:32.5]} 13... h6 {[%clk 0:02:21.8]} 14.
Rc1 {[%clk 0:02:30.3]} 14... Rc8 {[%clk 0:02:19.9]} 15. Qe2 {[%clk 0:02:30.6]}
15... O-O {[%clk 0:02:17.6]} 16. Bb1 {[%clk 0:02:31]} 16... Re8 {[%clk
0:02:02.8]} 17. Qd3 {[%clk 0:02:28.3]} 17... Nf8 {[%clk 0:02:02.3]} 18. Qd2
{[%clk 0:02:18.5]} 18... f5 {[%clk 0:01:40.4]} 19. exf6 {[%clk 0:02:11.4]} 19...
Bxf6 {[%clk 0:01:37.5]} 20. Ne5 {[%clk 0:02:03.9]} 20... Bxe5 {[%clk 0:01:26.7]}
21. Bxe5 {[%clk 0:01:58]} 21... Qg5 {[%clk 0:01:22.5]} 22. Bf4 {[%clk
0:01:52.8]} 22... Qf6 {[%clk 0:01:18.2]} 23. Rfe1 {[%clk 0:01:47.3]} 23... Rc4
{[%clk 0:01:11.9]} 24. Be5 {[%clk 0:01:46.7]} 24... Qf7 {[%clk 0:01:06.1]} 25.
Bd3 {[%clk 0:01:43.2]} 25... Rec8 {[%clk 0:01:02.1]} 26. Bxc4 {[%clk 0:01:39.2]}
26... dxc4 {[%clk 0:01:02]} 27. Re3 {[%clk 0:01:33.9]} 27... Ng6 {[%clk
0:00:49.3]} 28. Rg3 {[%clk 0:01:33.2]} 28... Ne7 {[%clk 0:00:47.9]} 29. Qxh6
{[%clk 0:01:29.8]} 29... Nf5 {[%clk 0:00:44.7]} 30. Qf4 {[%clk 0:01:13.8]} 30...
Nxg3 {[%clk 0:00:42.2]} 31. Qxg3 {[%clk 0:01:14.4]} 31... Bd5 {[%clk 0:00:37.6]}
32. h4 {[%clk 0:01:09]} 32... Rf8 {[%clk 0:00:37.3]} 33. Rc3 {[%clk 0:01:06.6]}
33... Qb7 {[%clk 0:00:28.7]} 34. Re3 {[%clk 0:01:03.6]} 34... Rf7 {[%clk
0:00:27.9]} 35. h5 {[%clk 0:01:02.6]} 35... Kh7 {[%clk 0:00:17.8]} 36. Qg6+
{[%clk 0:01:01.2]} 36... Kg8 {[%clk 0:00:15.9]} 37. h6 {[%clk 0:01:01.2]} 37...
b4 {[%clk 0:00:13]} 38. hxg7 {[%clk 0:00:41.1]} 38... Rxg7 {[%clk 0:00:11.1]}
39. Bxg7 {[%clk 0:00:40.4]} 39... Qxg7 {[%clk 0:00:10.6]} 40. Qe8+ {[%clk
0:00:36.9]} 40... Kh7 {[%clk 0:00:09.1]} 41. Rh3+ {[%clk 0:00:35.8]} 41... Qh6
{[%clk 0:00:07.9]} 42. Rxh6+ {[%clk 0:00:35.7]} 1-0

[Event "Late-Titled-Tuesday-Blitz-May-07-2024"]
[Site "Chess.com"]
[Date "2024.05.07"]
[Round "10"]
[White "MITerryble"]
[Black "Airquake"]
[Result "1-0"]
[WhiteElo "3027"]
[BlackElo "2860"]
[TimeControl "180+1"]
[EndTime "15:56:36 PDT"]
[Termination "MITerryble won on time"]

1. d4 {[%clk 0:02:56.3]} 1... Nf6 {[%clk 0:02:55.9]} 2. Bg5 {[%clk 0:02:56.1]}
2... e6 {[%clk 0:02:54.2]} 3. e4 {[%clk 0:02:55.9]} 3... d5 {[%clk 0:02:51.9]}
4. e5 {[%clk 0:02:56.1]} 4... h6 {[%clk 0:02:52.5]} 5. Be3 {[%clk 0:02:56]} 5...
Nfd7 {[%clk 0:02:51.6]} 6. c3 {[%clk 0:02:51.4]} 6... c5 {[%clk 0:02:50.9]} 7.
a3 {[%clk 0:02:52]} 7... Nc6 {[%clk 0:02:49.9]} 8. b4 {[%clk 0:02:51.6]} 8...
cxd4 {[%clk 0:02:40.7]} 9. cxd4 {[%clk 0:02:52.5]} 9... a6 {[%clk 0:02:34.4]}
10. f4 {[%clk 0:02:50.8]} 10... b5 {[%clk 0:02:33.6]} 11. Bd3 {[%clk 0:02:43]}
11... Nb6 {[%clk 0:02:33.5]} 12. Nf3 {[%clk 0:02:40]} 12... Nc4 {[%clk
0:02:33.5]} 13. Bf2 {[%clk 0:02:22]} 13... g6 {[%clk 0:02:12.8]} 14. O-O {[%clk
0:02:17.1]} 14... Bg7 {[%clk 0:02:08.7]} 15. Nc3 {[%clk 0:02:10.2]} 15... Bb7
{[%clk 0:02:03.2]} 16. Qe2 {[%clk 0:02:07.9]} 16... O-O {[%clk 0:01:59.8]} 17.
Nd2 {[%clk 0:02:08.1]} 17... Qb6 {[%clk 0:01:37.6]} 18. Nb3 {[%clk 0:02:08]}
18... a5 {[%clk 0:01:33.9]} 19. Nc5 {[%clk 0:02:02.1]} 19... Rfc8 {[%clk
0:01:16.9]} 20. a4 {[%clk 0:01:40]} 20... Nxb4 {[%clk 0:01:00.2]} 21. Nxb5
{[%clk 0:01:40]} 21... Bf8 {[%clk 0:00:49.2]} 22. Nxb7 {[%clk 0:01:31.6]} 22...
Qxb7 {[%clk 0:00:47.3]} 23. Bb1 {[%clk 0:01:29.5]} 23... Nb6 {[%clk 0:00:42.1]}
24. g4 {[%clk 0:01:26.3]} 24... Rc4 {[%clk 0:00:27.3]} 25. f5 {[%clk 0:01:16.7]}
25... Nxa4 {[%clk 0:00:26.7]} 26. Nd6 {[%clk 0:00:47.3]} 26... Bxd6 {[%clk
0:00:26.5]} 27. Rxa4 {[%clk 0:00:46.5]} 27... Bf8 {[%clk 0:00:18.5]} 28. fxe6
{[%clk 0:00:46.4]} 28... fxe6 {[%clk 0:00:18.7]} 29. Bxg6 {[%clk 0:00:46.7]}
29... Qg7 {[%clk 0:00:17.9]} 30. Bb1 {[%clk 0:00:46.7]} 30... Be7 {[%clk
0:00:14]} 31. Kh1 {[%clk 0:00:43.4]} 31... Bg5 {[%clk 0:00:13.7]} 32. Bg1 {[%clk
0:00:42.7]} 32... Rf8 {[%clk 0:00:11.3]} 33. Rxa5 {[%clk 0:00:38.3]} 33... Rc1
{[%clk 0:00:04.6]} 34. Rxc1 {[%clk 0:00:37.3]} 34... Bxc1 {[%clk 0:00:05.5]} 35.
Rb5 {[%clk 0:00:29.2]} 35... Nc6 {[%clk 0:00:05.4]} 36. Rc5 {[%clk 0:00:28.4]}
36... Nxe5 {[%clk 0:00:02]} 37. dxe5 {[%clk 0:00:24.7]} 37... Bf4 {[%clk
0:00:02.2]} 38. Rc6 {[%clk 0:00:24]} 38... Bxe5 {[%clk 0:00:02.5]} 39. Rxe6
{[%clk 0:00:24]} 39... Bc3 {[%clk 0:00:02.4]} 40. Rg6 {[%clk 0:00:24.2]} 1-0

[Event "Late-Titled-Tuesday-Blitz-May-07-2024"]
[Site "Chess.com"]
[Date "2024.05.07"]
[Round "10"]
[White "RespectfulDaveOnYouTube"]
[Black "Hilary46"]
[Result "1-0"]
[WhiteElo "2459"]
[BlackElo "2675"]
[TimeControl "180+1"]
[EndTime "15:56:36 PDT"]
[Termination "RespectfulDaveOnYouTube won by checkmate"]

1. e4 {[%clk 0:03:00.9]} 1... e5 {[%clk 0:02:56.9]} 2. Nf3 {[%clk 0:03:00.6]}
2... Nc6 {[%clk 0:02:57.4]} 3. Bc4 {[%clk 0:03:01]} 3... Nf6 {[%clk 0:02:52.4]}
4. d3 {[%clk 0:02:58.9]} 4... Be7 {[%clk 0:02:44]} 5. O-O {[%clk 0:02:57.8]}
5... O-O {[%clk 0:02:43.3]} 6. c3 {[%clk 0:02:58.2]} 6... d6 {[%clk 0:02:40.5]}
7. Bb3 {[%clk 0:02:58]} 7... Kh8 {[%clk 0:02:34.9]} 8. Ng5 {[%clk 0:02:50.9]}
8... Qe8 {[%clk 0:02:32]} 9. f4 {[%clk 0:02:51.1]} 9... exf4 {[%clk 0:02:28.4]}
10. Bxf4 {[%clk 0:02:50.5]} 10... Ng4 {[%clk 0:02:21.1]} 11. h3 {[%clk
0:02:41.2]} 11... Bxg5 {[%clk 0:02:19.3]} 12. Bxg5 {[%clk 0:02:39.7]} 12... Nge5
{[%clk 0:02:19.1]} 13. d4 {[%clk 0:02:32.8]} 13... f6 {[%clk 0:02:19.1]} 14. Be3
{[%clk 0:02:10.3]} 14... Ng6 {[%clk 0:02:18.1]} 15. Nd2 {[%clk 0:02:10.7]} 15...
f5 {[%clk 0:02:13]} 16. Qh5 {[%clk 0:02:09.3]} 16... f4 {[%clk 0:01:55.1]} 17.
Bxf4 {[%clk 0:01:49.7]} 17... Nxf4 {[%clk 0:01:52.6]} 18. Rxf4 {[%clk
0:01:50.1]} 18... Bd7 {[%clk 0:01:47]} 19. Bf7 {[%clk 0:01:34.5]} 19... Qe7
{[%clk 0:01:14.8]} 20. Raf1 {[%clk 0:01:11.8]} 20... Be8 {[%clk 0:01:07.5]} 21.
Bxe8 {[%clk 0:00:43]} 21... Raxe8 {[%clk 0:01:02.2]} 22. Rf7 {[%clk 0:00:43]}
22... Rxf7 {[%clk 0:00:57.1]} 23. Rxf7 {[%clk 0:00:43.9]} 23... Qd8 {[%clk
0:00:30.3]} 24. Nf3 {[%clk 0:00:21.4]} 24... h6 {[%clk 0:00:25.1]} 25. Qg4
{[%clk 0:00:08.3]} 25... Rg8 {[%clk 0:00:19.1]} 26. Nh4 {[%clk 0:00:08.9]} 26...
Qc8 {[%clk 0:00:11.4]} 27. Rd7 {[%clk 0:00:07.1]} 27... Nb8 {[%clk 0:00:04.9]}
28. Ng6+ {[%clk 0:00:02.7]} 28... Kh7 {[%clk 0:00:05.2]} 29. Qf5 {[%clk
0:00:03.1]} 29... b6 {[%clk 0:00:02.2]} 30. Nf8+ {[%clk 0:00:03.4]} 30... Kh8
{[%clk 0:00:01.9]} 31. Qh7# {[%clk 0:00:04.3]} 1-0

[Event "Late-Titled-Tuesday-Blitz-May-07-2024"]
[Site "Chess.com"]
[Date "2024.05.07"]
[Round "10"]
[White "robertoalejandro10"]
[Black "CarlosjPineror"]
[Result "0-1"]
[WhiteElo "2506"]
[BlackElo "2647"]
[TimeControl "180+1"]
[EndTime "15:56:41 PDT"]
[Termination "CarlosjPineror won on time"]

1. Nf3 {[%clk 0:03:00.9]} 1... Nf6 {[%clk 0:02:54.2]} 2. c4 {[%clk 0:03:01]}
2... g6 {[%clk 0:02:49.8]} 3. g3 {[%clk 0:02:56.9]} 3... Bg7 {[%clk 0:02:50.4]}
4. Bg2 {[%clk 0:02:57.1]} 4... O-O {[%clk 0:02:51.3]} 5. O-O {[%clk 0:02:57.4]}
5... d6 {[%clk 0:02:52.2]} 6. Nc3 {[%clk 0:02:57.8]} 6... c6 {[%clk 0:02:52.8]}
7. b3 {[%clk 0:02:57.4]} 7... Qa5 {[%clk 0:02:53.3]} 8. Bb2 {[%clk 0:02:54.6]}
8... Qh5 {[%clk 0:02:53.6]} 9. h4 {[%clk 0:02:55.1]} 9... h6 {[%clk 0:02:53.3]}
10. d4 {[%clk 0:02:50.8]} 10... g5 {[%clk 0:02:53.4]} 11. Qe1 {[%clk 0:02:49.9]}
11... Bg4 {[%clk 0:02:52.4]} 12. Qd2 {[%clk 0:02:46.7]} 12... Nh7 {[%clk
0:02:45.1]} 13. d5 {[%clk 0:02:41.7]} 13... f5 {[%clk 0:02:36.8]} 14. Nd1 {[%clk
0:01:59.8]} 14... f4 {[%clk 0:02:26.5]} 15. Bxg7 {[%clk 0:01:57.7]} 15... Kxg7
{[%clk 0:02:27.4]} 16. Nh2 {[%clk 0:01:31.2]} 16... fxg3 {[%clk 0:02:07.1]} 17.
Qd4+ {[%clk 0:01:16]} 17... Nf6 {[%clk 0:02:05.2]} 18. fxg3 {[%clk 0:01:04.2]}
18... Bxe2 {[%clk 0:02:02.4]} 19. Rf2 {[%clk 0:00:57.2]} 19... Bxd1 {[%clk
0:01:58.7]} 20. Rxd1 {[%clk 0:00:58.1]} 20... c5 {[%clk 0:01:54]} 21. Qa1 {[%clk
0:00:38.2]} 21... Nd7 {[%clk 0:01:52.3]} 22. Rdf1 {[%clk 0:00:36.3]} 22... gxh4
{[%clk 0:01:48.9]} 23. g4 {[%clk 0:00:34.3]} 23... Qe5 {[%clk 0:01:48.7]} 24.
Qd1 {[%clk 0:00:27.3]} 24... Qd4 {[%clk 0:01:47.7]} 25. Qe2 {[%clk 0:00:23.8]}
25... Ne5 {[%clk 0:01:42.7]} 26. Kh1 {[%clk 0:00:19.4]} 26... Nh7 {[%clk
0:01:42.7]} 27. Nf3 {[%clk 0:00:15.5]} 27... Nxf3 {[%clk 0:01:36]} 28. Rxf3
{[%clk 0:00:15.5]} 28... Rae8 {[%clk 0:01:23.7]} 29. Rxf8 {[%clk 0:00:11.7]}
29... Nxf8 {[%clk 0:01:24]} 30. g5 {[%clk 0:00:08.5]} 30... Ng6 {[%clk
0:01:14.1]} 31. gxh6+ {[%clk 0:00:07.4]} 31... Kxh6 {[%clk 0:01:13.4]} 32. Qe6
{[%clk 0:00:06.9]} 32... Qe5 {[%clk 0:01:02.1]} 33. Qd7 {[%clk 0:00:04.2]} 33...
Rf8 {[%clk 0:00:59.3]} 34. Rxf8 {[%clk 0:00:03.2]} 34... Nxf8 {[%clk 0:01:00.2]}
35. Qxb7 {[%clk 0:00:03.6]} 35... Ng6 {[%clk 0:00:58.2]} 36. Qc8 {[%clk
0:00:03.8]} 36... Qe1+ {[%clk 0:00:55.4]} 37. Kh2 {[%clk 0:00:04.2]} 37... Qg3+
{[%clk 0:00:55.9]} 38. Kh1 {[%clk 0:00:04.9]} 38... Nf4 {[%clk 0:00:56.6]} 39.
Qh8+ {[%clk 0:00:04.5]} 39... Kg6 {[%clk 0:00:55.2]} 40. Qg8+ {[%clk 0:00:04.5]}
40... Kf5 {[%clk 0:00:54.2]} 41. Qf7+ {[%clk 0:00:03.1]} 41... Ke5 {[%clk
0:00:45.5]} 42. Qxe7+ {[%clk 0:00:03.2]} 42... Kd4 {[%clk 0:00:46.1]} 43. Qe4+
{[%clk 0:00:03.6]} 43... Kc3 {[%clk 0:00:46.7]} 44. Qf3+ {[%clk 0:00:02.9]}
44... Qxf3 {[%clk 0:00:46.3]} 45. Bxf3 {[%clk 0:00:03.8]} 45... a5 {[%clk
0:00:43.5]} 46. Kh2 {[%clk 0:00:02.6]} 46... Kb2 {[%clk 0:00:37.6]} 0-1

[Event "Late-Titled-Tuesday-Blitz-May-07-2024"]
[Site "Chess.com"]
[Date "2024.05.07"]
[Round "10"]
[White "Oleg_Papayan"]
[Black "ATM622"]
[Result "0-1"]
[WhiteElo "2636"]
[BlackElo "2550"]
[TimeControl "180+1"]
[EndTime "15:56:44 PDT"]
[Termination "ATM622 won on time"]

1. e4 {[%clk 0:02:54.2]} 1... c6 {[%clk 0:02:59.1]} 2. Nf3 {[%clk 0:02:53.5]}
2... g6 {[%clk 0:02:57.3]} 3. d4 {[%clk 0:02:53.3]} 3... Bg7 {[%clk 0:02:57.1]}
4. Nc3 {[%clk 0:02:52.6]} 4... d6 {[%clk 0:02:55.8]} 5. h3 {[%clk 0:02:51.6]}
5... Nd7 {[%clk 0:02:55.8]} 6. Bg5 {[%clk 0:02:49.6]} 6... h6 {[%clk 0:02:51.3]}
7. Bh4 {[%clk 0:02:49.2]} 7... Qb6 {[%clk 0:02:50.5]} 8. Qd2 {[%clk 0:02:42.6]}
8... Ngf6 {[%clk 0:02:42.4]} 9. e5 {[%clk 0:02:31.7]} 9... dxe5 {[%clk 0:02:36]}
10. dxe5 {[%clk 0:02:32.6]} 10... Nd5 {[%clk 0:02:34.3]} 11. Nxd5 {[%clk
0:02:02.1]} 11... cxd5 {[%clk 0:02:22.5]} 12. Qxd5 {[%clk 0:01:53.9]} 12... Qxb2
{[%clk 0:02:19.1]} 13. Rd1 {[%clk 0:01:51.1]} 13... Qc3+ {[%clk 0:02:06.3]} 14.
Rd2 {[%clk 0:01:40.2]} 14... O-O {[%clk 0:01:49.7]} 15. e6 {[%clk 0:01:40.6]}
15... Nb6 {[%clk 0:01:37.7]} 16. exf7+ {[%clk 0:01:40.6]} 16... Kh7 {[%clk
0:01:35.4]} 17. Qd3 {[%clk 0:01:40.6]} 17... Qa1+ {[%clk 0:01:32.4]} 18. Rd1
{[%clk 0:01:39.5]} 18... Qxa2 {[%clk 0:01:27.4]} 19. Be2 {[%clk 0:00:55.6]}
19... Bf5 {[%clk 0:01:18.8]} 20. Qb3 {[%clk 0:00:55.7]} 20... Qxc2 {[%clk
0:01:12.7]} 21. Qxc2 {[%clk 0:00:52.9]} 21... Bxc2 {[%clk 0:01:13.6]} 22. Rc1
{[%clk 0:00:53.7]} 22... Bf5 {[%clk 0:01:08.5]} 23. Bxe7 {[%clk 0:00:36.8]}
23... Rxf7 {[%clk 0:01:07.2]} 24. Bc5 {[%clk 0:00:37]} 24... Rc7 {[%clk
0:00:54.7]} 25. O-O {[%clk 0:00:32.4]} 25... Bb2 {[%clk 0:00:53.2]} 26. Rb1
{[%clk 0:00:10.4]} 26... Bxb1 {[%clk 0:00:43.2]} 27. Rxb1 {[%clk 0:00:11.3]}
27... Rxc5 {[%clk 0:00:40.4]} 28. Rxb2 {[%clk 0:00:11.9]} 28... Re8 {[%clk
0:00:39.5]} 29. Bd3 {[%clk 0:00:11.7]} 29... Rd5 {[%clk 0:00:37.9]} 30. Bb1
{[%clk 0:00:07.2]} 30... Re7 {[%clk 0:00:35.4]} 31. h4 {[%clk 0:00:07.1]} 31...
Nc4 {[%clk 0:00:32]} 32. Rb4 {[%clk 0:00:05.6]} 32... a5 {[%clk 0:00:30.5]} 33.
Rxc4 {[%clk 0:00:05.2]} 33... Rd1+ {[%clk 0:00:30.8]} 34. Kh2 {[%clk 0:00:05.6]}
34... Rxb1 {[%clk 0:00:31]} 35. Ra4 {[%clk 0:00:02.9]} 35... b6 {[%clk
0:00:31.1]} 36. Nd4 {[%clk 0:00:02.7]} 36... Rd7 {[%clk 0:00:29.5]} 37. Ne6
{[%clk 0:00:02.3]} 37... Rb4 {[%clk 0:00:28.6]} 38. Rxb4 {[%clk 0:00:02.5]}
38... axb4 {[%clk 0:00:28.9]} 39. Nf8+ {[%clk 0:00:03.4]} 39... Kg7 {[%clk
0:00:23.9]} 40. Nxd7 {[%clk 0:00:04.3]} 40... b3 {[%clk 0:00:22.3]} 41. Nxb6
{[%clk 0:00:01.6]} 41... b2 {[%clk 0:00:22.5]} 42. Nc4 {[%clk 0:00:01.8]} 42...
b1=Q {[%clk 0:00:22.4]} 0-1